Workbook

Sheet سود سپرده
B2: گروه کامپیوتری توانا tavanacg.blog.ir
B3: محاسبات سود سپرده مدت‌دار
B4: مبلغ سپرده به ریال | C4: 500000000
B5: تعداد روز سپرده‌گذاری | C5: 30
B6: نرخ سود علی الحساب | C6: 0.2
B7: مبلغ سود (سال عادی) | C7: =C4*C5*C6/365 -> 8219178.082
B8: مبلغ سود (سال کبیسه) | C8: =C4*C5*C6/366 -> 8196721.311

Sheet تعدیل سود
B2: گروه کامپیوتری توانا tavanacg.blog.ir
B3: محاسبات تعدیل سود سپرده بلندمدت
B4: مبلغ سپرده به ریال | C4: 500000000
B5: تعداد روز سپرده‌گذاری | C5: 111
B6: نرخ سود پرداخت شده | C6: 0.2
B7: نرخ سود قابل پرداخت | C7: 0.095
B8: کل سود پرداخت شده | C8: =C4*C5*C6/365 -> 30410958.9
B9: کل سود تعلق گرفته | C9: =C4*C5*C7/365 -> 14445205.48
B10: مبلغ تعدیل سود | C10: =C8-C9 -> 15965753.42
B11: مبلغ قابل پرداخت | C11: =C4-C10 -> 484034246.6

Sheet وجه التزام
B2: گروه کامپیوتری توانا tavanacg.blog.ir
B3: محاسبات وجه التزام (جریمه تأخیر)
B4: مبلغ اقساط به ریال | C4: 10000000
B5: نرخ سود تسهیلات | C5: 0.18
B6: درصد وجه التزام | C6: 0.06
B7: مدت تأخیر به روز | C7: 60
B8: مبلغ وجه التزام | C8: =(C4*(C5+C6)*C7)/365 -> 394520.5479

Sheet مبادله ای
B2: گروه کامپیوتری توانا tavanacg.blog.ir
B3: محاسبات تسهیلات مبادله ای (فروش اقساطی، مرابحه و ...)
B4: مبلغ تسهیلات به ریال | C4: 500000000
B5: نرخ سود | C5: 0.18
B6: تعداد اقساط | C6: 60
B7: درصد وثیقه | C7: 1.4 | E7: شماره قسط | F7: 1
B8: مبلغ قسط ماهیانه | C8: =(((C4*C5)/12)*((1+(C5/12))^C6))/(((1+(C5/12))^C6)-1) -> 12696713.71 | E8: مبلغ اصل قسط | F8: =((1+C5/12)^(F7-1))*(C8-C4*C5/12) -> 5196713.714
B9: مبلغ سود | C9: =(C6*C8)-C4 -> 261802822.8 | E9: مبلغ سود قسط | F9: =C8-F8 -> 7500000
B10: کل مبلغ دریافتی (اصل+سود) | C10: =C4+C9 -> 761802822.8
B11: مبلغ وثیقه | C11: =C10*C7 -> 1066523952
B12: ضریب حقوق | C12: 3
B13: مبلغ خالص حقوق دریافتی | C13: =C8*C12 -> 38090141.14

Sheet قرض الحسنه
B2: گروه کامپیوتری توانا tavanacg.blog.ir
B3: محاسبات تسهیلات قرض الحسنه
B4: مبلغ تسهیلات به ریال | C4: 500000000
B5: نرخ کارمزد | C5: 0.04
B6: تعداد اقساط | C6: 84
B7: درصد وثیقه | C7: 1.4
B8: قسط ماهیانه | C8: =C4/(C6-ROUNDUP(C6/12,0)) -> 6493506.494
B9: کارمزد | C9: =karmozd(C4,C5,C6,C8) -> 74545454.55
B10: مبلغ وثیقه | C10: =C4*C7 -> 700000000

Sheet مشارکت
B2: گروه کامپیوتری توانا tavanacg.blog.ir
B3: محاسبات تسهیلات مشارکتی (مضاربه، مشارکت مدنی و ...)
B4: مبلغ تسهیلات به ریال | C4: 1000000000
B5: نرخ سود | C5: 0.18
B6: مدت به روز | C6: 120
B7: درصد وثیقه | C7: 1.4
B8: حداقل سود مورد انتظار بانک | C8: =(C4*C5*C6)/365 -> 59178082.19
B9: مبلغ دریافتی (اصل+سود) | C9: =C4+C8 -> 1059178082
B10: مبلغ وثیقه | C10: =C9*C7 -> 1482849315

Sheet خریددین
B2: گروه کامپیوتری توانا tavanacg.blog.ir
B3: محاسبات خرید دین
B4: مبلغ اوراق یا اسناد تجاری به ریال | C4: 1000000000
B5: نرخ تنزیل | C5: 0.18
B6: مدت به روز | C6: 150
B7: درصد وثیقه | C7: 1.4
B8: سود مورد انتظار بانک | C8: =(C4*C5*C6)/365 -> 73972602.74
B9: مبلغ خرید اوراق یا اسناد تجاری | C9: =C4-C8 -> 926027397.3
A10: =C10=C13 -> FALSE | B10: مبلغ وثیقه | C10: =C9*C7 -> 1296438356

Sheet ضمانتنامه
B2: گروه کامپیوتری توانا tavanacg.blog.ir
B3: محاسبات ضمانتنامه
B4: مبلغ ضمانتنامه به ریال | C4: 1000000000
B5: درصد پیش دریافت | C5: 0.1
B6: مدت به روز | C6: 180
B7: نرخ کارمزد | C7: 0.025
B8: درصد وثیقه | C8: 0.1
B9: مبلغ پیش دریافت | C9: =C4*C5 -> 100000000
B10: مبلغ کارمزد | C10: =(C4-C9)*C7*C6/365 -> 11095890.41
B11: مبلغ وثیقه | C11: =(C4-C9)*C8 -> 90000000
